bitfinex/quotes_BTCUSD_20241223
["timestamp","ask_amount","ask_price","bid_price","bid_amount"]
[1734956352796,0.0131714,96081.0,96080.0,0.56995821]
[1734956353027,0.0131714,96081.0,96080.0,0.76995821]
[1734956353260,0.0131714,96081.0,96080.0,0.78050995]
[1734956353665,0.0111714,96081.0,96080.0,0.78050995]
[1734956353995,0.0111714,96081.0,96080.0,1.1238099]
[1734956354283,8.56e-05,96093.0,96080.0,0.9238099]
[1734956354529,8.56e-05,96093.0,96092.0,0.381133]
[1734956354773,8.56e-05,96093.0,96092.0,0.48511932]
[1734956355013,8.56e-05,96093.0,96092.0,0.49300266]
[1734956355671,0.0010856,96093.0,96092.0,0.49300266]
[1734956355902,8.56e-05,96093.0,96092.0,0.49300266]
[1734956356356,8.56e-05,96093.0,96092.0,0.49600266]
[1734956358075,8.56e-05,96093.0,96092.0,0.49300266]
[1734956358521,8.56e-05,96093.0,96092.0,0.50765062]
[1734956358753,8.56e-05,96093.0,96092.0,0.55005062]
[1734956359005,8.56e-05,96093.0,96092.0,0.72825062]
[1734956359255,8.56e-05,96093.0,96092.0,0.62625062]
[1734956359473,8.56e-05,96093.0,96092.0,0.72925062]
[1734956359704,8.56e-05,96093.0,96092.0,0.82114794]
[1734956359948,8.56e-05,96093.0,96092.0,0.81814794]
[1734956360856,8.56e-05,96093.0,96092.0,0.62525062]
[1734956361083,8.56e-05,96113.0,96100.0,0.10010789]
[1734956361275,8.56e-05,96113.0,96106.0,0.208102]
[1734956361518,8.56e-05,96113.0,96108.0,0.208099]
[1734956361740,8.56e-05,96113.0,96110.0,0.208094]
[1734956361964,8.56e-05,96113.0,96112.0,0.20809]
[1734956362377,0.0006205,96113.0,96112.0,0.21594146]
[1734956362821,0.0036205,96113.0,96112.0,0.21594146]
[1734956363044,0.0056205,96113.0,96112.0,0.21594146]
[1734956364136,0.0006205,96113.0,96112.0,0.21594146]
[1734956364608,0.0106205,96113.0,96112.0,0.21694146]
[1734956372101,0.0066205,96113.0,96112.0,0.21594146]
[1734956372316,0.0006205,96113.0,96112.0,0.21594146]
[1734956373639,0.0026205,96113.0,96112.0,0.21594146]
[1734956373896,0.0026205,96113.0,96112.0,0.00785146]
[1734956374089,0.0056205,96113.0,96112.0,0.00889179]
[1734956374311,0.0056205,96113.0,96112.0,0.00104033]
[1734956374547,0.0056205,96113.0,96112.0,0.00880566]
[1734956374728,0.0056205,96113.0,96112.0,0.00104033]
[1734956374941,0.0006205,96113.0,96112.0,0.00880566]
[1734956375206,0.0026205,96113.0,96110.0,0.01035055]
[1734956375441,0.0056205,96113.0,96112.0,0.00776533]
[1734956375629,0.0821205,96113.0,96111.0,0.00775346]
[1734956375873,0.0821205,96113.0,96112.0,0.00775276]
[1734956376058,0.0851205,96113.0,96112.0,0.00775276]
[1734956376289,0.0851205,96113.0,96109.0,0.208096]
[1734956376489,0.0851205,96113.0,96112.0,0.00775276]
[1734956376649,0.0851205,96113.0,96109.0,0.208096]
[1734956376888,0.208063,96125.0,96110.0,0.00775416]
[1734956377087,0.208063,96125.0,96110.0,0.0087945]
[1734956377304,0.2082432,96121.0,96110.0,0.00775416]
[1734956377446,0.002,96113.0,96110.0,0.00775416]
[1734956378109,0.004,96113.0,96110.0,0.00775416]
[1734956378310,0.002,96113.0,96110.0,0.00775416]
[1734956379872,0.0826,96113.0,96110.0,0.00775416]
[1734956380110,0.0826,96113.0,96109.0,0.00016169]
[1734956380570,0.0836,96113.0,96109.0,0.00016169]
[1734956380790,0.0816,96113.0,96109.0,0.00016169]
[1734956381036,0.0806,96113.0,96109.0,0.00016169]
[1734956381273,0.0816,96113.0,96109.0,0.00016169]
[1734956381501,0.0826,96113.0,96109.0,0.00016169]
[1734956384623,0.001,96113.0,96109.0,0.00016169]
[1734956384859,0.0001712,96121.0,96110.0,0.00774475]
[1734956385320,0.0010856,96113.0,96110.0,0.00774475]
[1734956385779,0.0010856,96113.0,96109.0,0.01216169]
[1734956386007,8.56e-05,96113.0,96109.0,0.00316169]
[1734956386469,8.56e-05,96113.0,96110.0,0.00775514]
[1734956386691,0.0020856,96113.0,96110.0,0.00775514]
[1734956387139,0.20809,96112.0,96110.0,0.00775514]
[1734956387391,0.20809,96112.0,96110.0,0.01275514]
[1734956387613,0.20809,96112.0,96109.0,0.00016169]
[1734956388281,0.21109,96112.0,96109.0,0.00016169]
[1734956388506,0.21109,96112.0,96110.0,0.004]
[1734956388744,0.21109,96112.0,96109.0,0.00016169]
[1734956388985,0.003,96112.0,96109.0,0.00016169]
[1734956389205,0.003,96112.0,96109.0,0.00216169]
[1734956389431,0.20809,96112.0,96109.0,0.00216169]
[1734956390296,0.20809,96112.0,96109.0,0.00016169]
[1734956390506,8.56e-05,96113.0,96109.0,0.00316169]
[1734956390728,0.001,96112.0,96110.0,0.009]
[1734956390959,8.56e-05,96113.0,96109.0,0.00316169]
[1734956391183,8.56e-05,96113.0,96111.0,0.00775277]
[1734956391184,0.001,96112.0,96111.0,0.00775277]
[1734956391410,0.001,96112.0,96110.0,0.00775347]
[1734956391654,0.001,96112.0,96111.0,0.00775277]
[1734956391901,0.002,96112.0,96111.0,0.00104036]
[1734956392160,0.001,96112.0,96111.0,0.00879289]
[1734956392827,0.001,96112.0,96111.0,0.00775253]
[1734956393319,0.001,96112.0,96109.0,0.00016169]
[1734956393556,0.001,96112.0,96111.0,0.00773669]
[1734956393790,0.001,96112.0,96110.0,0.00773739]
[1734956394026,0.001,96112.0,96111.0,0.00773669]
[1734956394478,0.001,96112.0,96111.0,0.003]
[1734956395139,0.001,96112.0,96111.0,0.01873182]
[1734956395325,0.001,96112.0,96111.0,0.011]
[1734956395476,0.001,96112.0,96111.0,0.01873182]
[1734956397711,0.001,96112.0,96111.0,0.15780442]
[1734956398998,0.001,96112.0,96111.0,0.50195223]
[1734956399233,0.079,96112.0,96111.0,0.50195223]
[1734956400196,0.079,96112.0,96111.0,0.01873182]
[1734956400898,0.14933346,96112.0,96111.0,0.01873182]
[1734956401118,0.14933346,96112.0,96111.0,0.011]
[1734956401590,0.18298632,96112.0,96111.0,0.011]
[1734956402020,0.2124079,96112.0,96111.0,0.011]
[1734956402968,0.2124079,96112.0,96111.0,0.008]
[1734956403191,0.208092,96111.0,96110.0,0.0001712]
[1734956403438,0.44457932,96111.0,96110.0,0.0001712]
[1734956404077,0.54856564,96111.0,96110.0,0.0001712]
[1734956404547,0.44856564,96111.0,96110.0,0.0001712]
[1734956404739,0.44856564,96111.0,96110.0,0.0011712]
[1734956404954,0.34457932,96111.0,96110.0,0.0011712]
[1734956405191,0.42117932,96111.0,96110.0,0.0011712]
[1734956406001,0.42117932,96111.0,96110.0,0.0001712]
[1734956406225,0.42117932,96111.0,96110.0,0.0021712]
[1734956406652,0.42117932,96111.0,96110.0,0.0001712]
[1734956406862,0.42117932,96111.0,96110.0,0.0021712]
[1734956407328,0.38867832,96111.0,96110.0,0.0021712]
[1734956407537,0.4834576,96111.0,96110.0,0.0021712]
[1734956408808,0.38867832,96111.0,96110.0,0.0021712]
[1734956409021,8.56e-05,96113.0,96110.0,0.0021712]
[1734956410168,8.56e-05,96113.0,96110.0,0.0001712]
[1734956410400,8.56e-05,96113.0,96110.0,0.0011712]
[1734956411506,8.56e-05,96112.0,96110.0,0.0011712]
[1734956412387,8.56e-05,96112.0,96110.0,0.0001712]
[1734956412594,0.31207832,96111.0,96110.0,0.0011712]
[1734956412799,0.39277832,96111.0,96110.0,0.0001712]
[1734956413214,8.56e-05,96112.0,96110.0,0.0091712]
[1734956413419,8.56e-05,96112.0,96110.0,0.0001712]
[1734956413630,8.56e-05,96112.0,96111.0,0.0119857]
[1734956414476,8.56e-05,96112.0,96110.0,0.0061712]
[1734956414814,8.56e-05,96112.0,96110.0,0.0031712]
[1734956416021,0.2081766,96112.0,96110.0,0.0031712]
[1734956416253,0.2081766,96112.0,96110.0,0.0041712]
[1734956416481,8.56e-05,96112.0,96111.0,0.009]
[1734956417789,8.56e-05,96112.0,96111.0,0.004]
[1734956417979,8.56e-05,96112.0,96111.0,0.0159844]
[1734956418219,8.56e-05,96112.0,96111.0,0.013]
[1734956424463,0.10407192,96112.0,96111.0,0.013]
[1734956426199,8.56e-05,96112.0,96111.0,0.013]
[1734956433740,8.56e-05,96112.0,96111.0,0.01950396]
[1734956434400,8.56e-05,96112.0,96111.0,0.22759596]
[1734956435920,8.56e-05,96112.0,96111.0,0.2378668]
[1734956436146,0.0050456,96112.0,96111.0,0.238038]
[1734956436779,0.0050456,96112.0,96111.0,0.315438]
[1734956439171,0.0050456,96112.0,96111.0,0.40858013]
[1734956440743,0.0050456,96112.0,96111.0,0.65883469]
[1734956442517,8.56e-05,96113.0,96111.0,0.65883469]
[1734956442518,8.56e-05,96113.0,96112.0,0.173]
[1734956442744,0.0462,96164.0,96112.0,0.173]
[1734956442745,0.22188339,96161.0,96127.0,0.486258]
[1734956442967,0.22188339,96161.0,96127.0,0.59024432]
[1734956443198,0.14028339,96160.0,96127.0,0.59024432]
[1734956443441,0.14028339,96160.0,96127.0,1.25569726]
[1734956444424,0.0030856,96128.0,96127.0,1.25569726]
[1734956444911,0.0030856,96128.0,96127.0,1.60878088]
[1734956445149,0.0070856,96128.0,96127.0,1.60878088]
[1734956445622,0.0816,96161.0,96130.0,0.1]
[1734956445860,0.0816,96161.0,96140.0,0.208029]
[1734956446134,0.0754,96165.0,96140.0,0.340429]
[1734956446366,0.283377,96165.0,96140.0,0.34686438]
[1734956446595,0.0754,96165.0,96140.0,0.34686438]
[1734956447056,0.0754,96165.0,96140.0,0.50602607]
[1734956447550,0.0754,96165.0,96140.0,0.61150477]
[1734956447789,0.0828,96171.0,96140.0,0.61650477]
[1734956448943,0.0030856,96141.0,96140.0,0.61150477]
[1734956449181,0.0040856,96141.0,96140.0,1.37050477]
[1734956449421,0.001,96141.0,96140.0,1.37050477]
[1734956449668,8.56e-05,96178.0,96176.0,0.20795]
[1734956449996,8.56e-05,96178.0,96177.0,0.00638008]
[1734956450965,8.56e-05,96178.0,96177.0,0.00654177]
[1734956452068,0.0010856,96178.0,96177.0,0.00654177]
[1734956452318,0.0826856,96178.0,96177.0,0.00654177]
[1734956452550,0.0816856,96178.0,96177.0,0.00016169]
[1734956452771,0.0826856,96178.0,96177.0,0.00116169]
[1734956452974,0.18667192,96178.0,96177.0,0.00116169]
[1734956453185,0.23217192,96178.0,96177.0,0.00116169]
[1734956454107,0.22717192,96178.0,96177.0,0.00016169]
[1734956454997,0.23017192,96178.0,96177.0,0.00016169]
[1734956455442,0.22717192,96178.0,96177.0,0.00416169]
[1734956455997,0.22717192,96178.0,96177.0,0.00016169]
[1734956456285,0.207978,96164.0,96149.0,0.023]
[1734956456480,0.207978,96164.0,96149.0,0.00103994]
[1734956456758,0.207978,96164.0,96150.0,0.00637319]
[1734956458400,0.208978,96164.0,96149.0,0.00103994]
[1734956458850,0.208978,96164.0,96151.0,0.00637274]
[1734956459047,0.207978,96164.0,96150.0,0.00637319]
[1734956459169,0.207978,96164.0,96149.0,0.023]
[1734956459409,0.4160416,96164.0,96151.0,0.00637274]
[1734956459654,0.2080636,96164.0,96149.0,0.00103994]
[1734956460142,0.2080636,96164.0,96150.0,0.00637319]
[1734956460377,0.2090636,96164.0,96150.0,0.00837319]
[1734956460578,0.2090636,96164.0,96150.0,0.00637319]
[1734956460744,0.2080636,96164.0,96150.0,0.00637319]
[1734956461157,0.0792,96163.0,96150.0,0.00637319]
[1734956461576,0.0792,96163.0,96149.0,0.003]
[1734956461772,0.0792,96163.0,96151.0,0.00637274]
[1734956461985,0.0792,96163.0,96150.0,0.00737319]
[1734956462245,0.207984,96161.0,96150.0,0.001]
[1734956462454,0.207984,96161.0,96150.0,0.003]
[1734956462630,0.207984,96161.0,96150.0,0.001]
[1734956463545,0.207984,96161.0,96150.0,0.003]
[1734956463972,0.207984,96161.0,96150.0,0.002]
[1734956464227,0.0782,96152.0,96150.0,0.002]
[1734956464463,0.51999832,96151.0,96148.0,0.00016184]
[1734956464703,0.20801,96149.0,96148.0,0.00016184]
[1734956464940,0.31199632,96149.0,96148.0,0.00016184]
[1734956466171,0.207999,96155.0,96148.0,0.00616184]
[1734956466426,0.10398632,96154.0,96148.0,0.00616184]
[1734956466650,0.208001,96153.0,96148.0,0.00816184]
[1734956467113,0.207991,96158.0,96148.0,0.00616184]
[1734956467317,0.207995,96156.0,96148.0,0.00616184]
[1734956467568,0.2080636,96164.0,96148.0,0.00016184]
[1734956467801,0.2080636,96164.0,96148.0,0.00116184]
[1734956468048,8.56e-05,96164.0,96150.0,0.023]
[1734956468282,8.56e-05,96164.0,96150.0,0.02403993]
[1734956468526,8.56e-05,96164.0,96152.0,0.023]
[1734956468769,8.56e-05,96164.0,96148.0,0.20328553]
[1734956469009,0.2080646,96164.0,96153.0,0.01339154]
[1734956469441,0.2080646,96164.0,96154.0,0.01356398]
[1734956469442,0.0010856,96164.0,96154.0,0.01356398]
[1734956469670,0.0010856,96164.0,96154.0,0.207997]
[1734956469896,0.0020856,96164.0,96155.0,0.01356276]
[1734956470124,8.56e-05,96164.0,96155.0,0.01356276]
[1734956470383,8.56e-05,96164.0,96151.0,0.208006]
[1734956470608,0.0010856,96164.0,96151.0,0.208006]
[1734956470819,0.0010856,96164.0,96156.0,0.01356154]
[1734956471039,0.0010856,96164.0,96151.0,0.208006]
[1734956471263,0.0010856,96164.0,96157.0,0.01356033]
[1734956471483,8.56e-05,96164.0,96155.0,0.207996]
[1734956471765,8.56e-05,96164.0,96151.0,0.208006]
[1734956472024,8.56e-05,96164.0,96156.0,0.01356154]
[1734956472242,8.56e-05,96164.0,96155.0,0.003]
[1734956472463,8.56e-05,96164.0,96157.0,0.01356033]
[1734956472684,8.56e-05,96164.0,96155.0,0.003]
[1734956472851,8.56e-05,96164.0,96158.0,0.01355911]
[1734956473072,8.56e-05,96164.0,96155.0,0.001]
[1734956473244,8.56e-05,96164.0,96159.0,0.01355789]
[1734956473446,8.56e-05,96164.0,96157.0,0.207993]
[1734956473669,8.56e-05,96164.0,96160.0,0.01355667]
[1734956473870,8.56e-05,96164.0,96156.0,0.002]
[1734956474073,8.56e-05,96164.0,96161.0,0.01355546]
[1734956474275,8.56e-05,96164.0,96156.0,0.002]
[1734956474577,8.56e-05,96164.0,96157.0,0.01356033]
[1734956475355,8.56e-05,96164.0,96157.0,0.207991]
[1734956475600,8.56e-05,96164.0,96158.0,0.01355911]
[1734956475829,8.56e-05,96164.0,96160.0,0.0755]
[1734956476060,8.56e-05,96164.0,96162.0,0.15]
[1734956476273,8.56e-05,96164.0,96163.0,0.20901973]
[1734956476492,8.56e-05,96164.0,96163.0,0.3714946]
[1734956477225,0.0030856,96164.0,96163.0,0.3714946]
[1734956477406,0.0070856,96164.0,96163.0,0.3714946]
[1734956477613,0.0040856,96164.0,96163.0,0.3714946]
[1734956478057,0.0080856,96164.0,96163.0,0.3714946]
[1734956478268,0.0080856,96164.0,96163.0,0.38167777]
[1734956479107,0.0040856,96164.0,96163.0,0.38167777]
[1734956479902,0.0080856,96164.0,96163.0,0.38267777]
[1734956480596,0.0080856,96164.0,96163.0,0.02469777]
[1734956481517,0.0080856,96164.0,96163.0,0.17469777]
[1734956481758,0.0080856,96164.0,96163.0,0.17573747]
[1734956482644,0.0080856,96164.0,96163.0,0.27972379]
[1734956482865,0.0080856,96164.0,96163.0,0.40308409]
[1734956483583,0.0040856,96164.0,96163.0,0.40308409]
[1734956483801,8.56e-05,96164.0,96163.0,0.40208409]
[1734956484022,0.0070856,96164.0,96163.0,0.40308409]
[1734956484226,0.0070856,96164.0,96163.0,0.54106533]
[1734956484227,0.0030856,96164.0,96163.0,0.54106533]
[1734956484530,8.56e-05,96178.0,96177.0,0.207949]
[1734956484937,8.56e-05,96178.0,96177.0,0.22129403]
[1734956485894,8.56e-05,96178.0,96177.0,0.22145574]
[1734956486127,8.56e-05,96178.0,96177.0,0.23045574]
[1734956486499,8.56e-05,96178.0,96177.0,0.23445574]
[1734956487352,8.56e-05,96178.0,96177.0,0.63994206]
[1734956487578,8.56e-05,96178.0,96177.0,1.26110375]
[1734956488253,8.56e-05,96178.0,96177.0,1.26732553]
[1734956488702,8.56e-05,96178.0,96177.0,1.26132553]
[1734956488865,0.0010856,96178.0,96177.0,1.26132553]
[1734956489080,8.56e-05,96178.0,96177.0,1.60369096]
[1734956489280,8.56e-05,96190.0,96189.0,0.357923]
[1734956489688,8.56e-05,96190.0,96189.0,0.37158079]
[1734956490499,0.0010856,96190.0,96189.0,0.37158079]
[1734956491562,0.0010856,96190.0,96189.0,0.46426702]
[1734956491696,0.0040856,96190.0,96189.0,0.46426702]
[1734956492155,0.0040856,96190.0,96189.0,0.69125334]
[1734956492641,0.0040856,96190.0,96189.0,0.59856711]
[1734956492889,8.57e-05,96209.0,96191.0,0.1]
[1734956493129,8.57e-05,96209.0,96189.0,1.02995476]
[1734956493130,8.57e-05,96209.0,96208.0,0.508382]
[1734956493342,8.57e-05,96209.0,96208.0,0.71236832]
[1734956493562,8.57e-05,96209.0,96208.0,0.72579375]
[1734956493788,8.57e-05,96209.0,96208.0,0.76808912]
[1734956494421,8.57e-05,96209.0,96208.0,0.76825083]
[1734956494791,0.0010857,96209.0,96208.0,0.73608791]
[1734956495035,0.0010857,96209.0,96208.0,1.38941252]
[1734956495252,8.57e-05,96209.0,96208.0,1.73128733]
[1734956495466,8.57e-05,96209.0,96208.0,1.70112441]
[1734956495847,8.57e-05,96209.0,96208.0,1.70512441]
[1734956496091,8.57e-05,96209.0,96208.0,1.70112441]
[1734956496514,8.57e-05,96209.0,96208.0,1.60512441]
[1734956496729,0.00103997,96245.0,96221.0,0.357854]
[1734956496940,0.00103997,96245.0,96221.0,0.46184032]
[1734956497178,8.56e-05,96246.0,96221.0,0.59820824]
[1734956497390,8.56e-05,96246.0,96221.0,0.49820824]
[1734956497598,8.56e-05,96246.0,96221.0,0.59820824]
[1734956498259,0.00107,96222.0,96221.0,0.59820824]
[1734956499093,0.00107,96222.0,96221.0,0.60843027]
[1734956499693,8.56e-05,96246.0,96221.0,0.60843027]
[1734956499893,8.56e-05,96246.0,96224.0,0.15]
[1734956500119,0.0827,96237.0,96224.0,0.15]
[1734956500322,0.0827,96237.0,96225.0,0.01336305]
[1734956500533,0.290521,96237.0,96225.0,0.01336305]
[1734956500739,0.00103997,96236.0,96225.0,0.01336305]
[1734956500941,0.207833,96231.0,96225.0,0.01336305]
[1734956501313,0.415666,96231.0,96210.0,0.207877]
[1734956501517,0.20887497,96230.0,96209.0,0.20788]
[1734956501721,0.41671097,96230.0,96211.0,0.01331134]
[1734956501903,0.20887497,96230.0,96213.0,0.207872]
[1734956502117,0.498341,96237.0,96215.0,0.207867]
[1734956502342,0.207824,96235.0,96217.0,0.207863]
[1734956502533,0.207828,96233.0,96218.0,0.00103919]
[1734956502743,0.00103997,96232.0,96225.0,0.002]
[1734956502984,0.207833,96231.0,96225.0,0.002]
[1734956503196,0.207833,96231.0,96215.0,0.007]
[1734956503427,0.207843,96227.0,96216.0,0.01431761]
[1734956503596,0.207833,96231.0,96216.0,0.01327842]
[1734956503810,0.207833,96231.0,96218.0,0.007]
[1734956504061,0.18668632,96237.0,96217.0,0.01327073]
[1734956504062,0.207851,96223.0,96217.0,0.01327073]
[1734956504282,0.207851,96223.0,96208.0,0.00016171]
[1734956504496,0.207851,96223.0,96217.0,0.003]
[1734956504716,0.207844,96226.0,96217.0,0.003]
[1734956504943,0.197844,96226.0,96215.0,0.009]
[1734956505138,0.001,96223.0,96215.0,0.009]
[1734956505379,0.001,96223.0,96216.0,0.01431116]
[1734956505611,0.00103997,96230.0,96216.0,0.01431116]
[1734956505812,0.00103997,96230.0,96216.0,0.01327194]
[1734956505813,0.289437,96229.0,96216.0,0.01327194]
[1734956506027,0.001,96226.0,96218.0,0.008]
[1734956506180,0.001,96226.0,96214.0,0.00103922]
[1734956506378,0.001,96226.0,96215.0,0.01328714]
[1734956506614,0.002,96223.0,96215.0,0.01328714]
[1734956506814,0.002,96223.0,96216.0,0.00103922]
[1734956507304,0.002,96223.0,96217.0,0.01327839]
[1734956507511,0.0816,96229.0,96217.0,0.01327839]
[1734956507757,0.003,96226.0,96217.0,0.01327839]
[1734956507981,0.003,96226.0,96216.0,0.003]
[1734956508165,0.003,96226.0,96214.0,0.00103922]
[1734956508393,0.210844,96226.0,96209.0,0.15]
[1734956508608,0.002,96223.0,96215.0,0.01327997]
[1734956508821,0.002,96223.0,96210.0,0.00103922]
[1734956509043,0.00103997,96228.0,96210.0,0.01432527]
[1734956509262,0.003,96223.0,96215.0,0.207867]
[1734956509407,0.0020856,96226.0,96216.0,0.0010392]
[1734956509612,0.0020856,96226.0,96217.0,0.00103919]
[1734956509847,0.003,96223.0,96218.0,0.00103919]
[1734956510055,0.003,96223.0,96218.0,0.01430952]
[1734956510655,0.0020856,96226.0,96218.0,0.01430952]
[1734956511007,0.0050856,96226.0,96218.0,0.01430952]
[1734956511233,0.0030856,96226.0,96223.0,0.20785]
[1734956511447,0.0030856,96226.0,96224.0,0.00103912]
[1734956511676,0.0030856,96226.0,96225.0,0.207846]
[1734956511894,0.0030856,96226.0,96225.0,0.357846]
[1734956512107,8.56e-05,96226.0,96225.0,0.37110782]
[1734956512370,0.0020856,96226.0,96225.0,0.16326182]
[1734956512580,0.0020856,96226.0,96225.0,0.16430094]
[1734956512780,8.56e-05,96226.0,96225.0,0.16430094]
[1734956512992,0.0030856,96226.0,96225.0,0.01430094]
[1734956513211,0.0040856,96226.0,96225.0,0.01326182]
[1734956513430,0.0040856,96226.0,96225.0,0.05976182]
[1734956513659,0.0040856,96226.0,96225.0,0.06080094]
[1734956513875,0.0040856,96226.0,96225.0,0.06013883]
[1734956514539,0.0040856,96226.0,96225.0,0.33712515]
[1734956514540,0.0030856,96226.0,96225.0,0.33712515]
[1734956514759,0.0040856,96226.0,96225.0,0.33712515]
[1734956515222,8.56e-05,96226.0,96225.0,0.33712515]
[1734956515456,0.0001,96249.0,96237.0,0.20782]
[1734956515868,0.0001,96249.0,96237.0,0.22160313]
[1734956516765,0.00462147,96238.0,96237.0,0.22160313]
[1734956518629,0.00662147,96238.0,96237.0,0.22160313]
[1734956518859,0.00662147,96238.0,96237.0,0.45150313]
[1734956519775,0.00462147,96238.0,96237.0,0.45150313]
[1734956519999,0.00262147,96238.0,96237.0,0.45150313]
[1734956520442,0.00662147,96238.0,96237.0,0.45150313]
[1734956520895,0.00662147,96238.0,96237.0,0.3820833]
[1734956521123,0.00662147,96238.0,96237.0,0.0242633]
[1734956522025,0.00662147,96238.0,96237.0,0.01378313]
[1734956522763,0.00662147,96238.0,96235.0,0.207822]
[1734956522846,0.00662147,96238.0,96237.0,0.01427901]
[1734956523061,0.00662147,96238.0,96235.0,0.207822]
[1734956523279,0.00662147,96238.0,96237.0,0.20782]
[1734956523719,0.00662147,96238.0,96237.0,0.22209901]
[1734956524156,0.00262147,96238.0,96237.0,0.01427901]
[1734956524385,0.00562147,96238.0,96237.0,0.01427901]
[1734956524609,0.00562147,96238.0,96231.0,0.15]
[1734956524831,0.00362147,96238.0,96237.0,0.01427901]
[1734956525059,0.21143947,96238.0,96232.0,0.01428509]
[1734956525299,0.21243947,96238.0,96232.0,0.01428509]
[1734956525518,0.20943947,96238.0,96227.0,0.00103907]
[1734956525741,0.00362147,96238.0,96227.0,0.00103907]
[1734956525952,0.08572147,96238.0,96237.0,0.002]
[1734956526175,0.08272147,96238.0,96237.0,0.002]
[1734956526397,0.20782,96237.0,96232.0,0.004]
[1734956526622,0.207828,96233.0,96225.0,0.52116169]
[1734956526837,0.207828,96233.0,96227.0,0.003]
[1734956527053,0.207828,96233.0,96227.0,0.01]
[1734956527269,0.207828,96233.0,96227.0,0.003]
[1734956527618,0.21282,96237.0,96227.0,0.003]
[1734956527828,0.21282,96237.0,96221.0,0.15103913]
[1734956528034,0.207829,96233.0,96228.0,0.0142743]
[1734956528247,0.20784,96228.0,96219.0,0.01022157]
[1734956528469,0.20784,96228.0,96215.0,0.00103918]
[1734956528670,0.20784,96228.0,96220.0,0.01428403]
[1734956528884,0.207829,96233.0,96219.0,0.01429697]
[1734956529093,0.210829,96233.0,96221.0,0.0142972]
[1734956529334,0.003,96233.0,96220.0,0.22215342]
[1734956529542,0.003,96233.0,96222.0,0.01429598]
[1734956529745,0.003,96233.0,96221.0,0.0142972]
[1734956529947,0.207827,96234.0,96223.0,0.01429477]
[1734956530155,0.08272147,96238.0,96224.0,0.00103919]
[1734956530580,0.20885997,96237.0,96225.0,0.01429234]
[1734956530793,0.20782,96237.0,96221.0,0.00103915]
[1734956530995,0.1231,96237.0,96222.0,0.22214798]
[1734956531451,0.0775,96237.0,96222.0,0.22214798]
[1734956531640,0.28532,96237.0,96222.0,0.22214798]
[1734956531864,0.0775,96237.0,96223.0,0.20888915]
[1734956532072,0.0775,96237.0,96223.0,0.22318392]
[1734956532285,0.0775,96237.0,96227.0,0.20784]
[1734956532493,0.0775,96237.0,96228.0,0.00103908]
[1734956532711,0.0775,96237.0,96228.0,0.01532777]
[1734956536313,0.0775,96237.0,96228.0,0.01428869]
[1734956536732,0.0775,96237.0,96226.0,0.00121028]
[1734956536952,0.0775,96237.0,96229.0,0.01428748]
[1734956537158,0.00062147,96238.0,96228.0,0.207839]
[1734956537372,0.00062147,96238.0,96230.0,0.01428626]
[1734956537591,0.00062147,96238.0,96235.0,0.207824]
[1734956537816,0.00062147,96238.0,96237.0,0.20782]
[1734956538069,0.00062147,96238.0,96237.0,0.22209775]
[1734956538779,0.00362147,96238.0,96237.0,0.22209775]
[1734956539021,0.00362147,96238.0,96237.0,0.01427775]
[1734956539252,0.00062147,96238.0,96237.0,0.01427775]
[1734956539491,0.00062147,96238.0,96237.0,0.00103894]
[1734956539738,0.00462147,96238.0,96237.0,0.01534516]
[1734956539978,0.00462147,96238.0,96237.0,0.35782]
[1734956540194,0.01162147,96238.0,96237.0,0.60011254]
[1734956540428,0.01062147,96238.0,96237.0,1.2553754]
[1734956540901,0.01162147,96238.0,96237.0,1.2553754]
[1734956541136,8.56e-05,96246.0,96245.0,0.357803]
[1734956541380,8.56e-05,96246.0,96245.0,0.46178932]
[1734956541597,8.56e-05,96246.0,96245.0,0.47601915]
[1734956542059,8.56e-05,96246.0,96245.0,0.01422983]
[1734956542341,8.56e-05,96246.0,96245.0,0.1135519]
[1734956542590,8.56e-05,96246.0,96245.0,0.90590394]
[1734956542809,8.56e-05,96246.0,96245.0,1.44126777]
[1734956543051,8.56e-05,96246.0,96245.0,1.54126777]
[1734956543251,8.56e-05,96246.0,96245.0,1.68996777]
[1734956543455,0.0374618,96275.0,96248.0,0.2]
[1734956543659,0.2077986,96287.0,96267.0,0.15]
[1734956543660,8.56e-05,96287.0,96267.0,0.15]
[1734956543881,8.56e-05,96287.0,96268.0,0.0010386]
[1734956544086,8.56e-05,96287.0,96268.0,0.0141742]
[1734956544285,0.00112557,96287.0,96268.0,0.0141742]
[1734956544495,0.00112557,96287.0,96269.0,0.0010386]
[1734956544920,0.00112557,96287.0,96269.0,0.00120031]
[1734956545142,0.00112557,96287.0,96270.0,0.01417177]
[1734956545356,0.00112557,96287.0,96271.0,0.0010386]
[1734956545571,0.00512557,96287.0,96271.0,0.0010386]
[1734956545784,0.00512557,96287.0,96272.0,0.01416934]
[1734956545990,0.00712557,96287.0,96273.0,0.207742]
[1734956546248,0.0040856,96287.0,96274.0,0.20774]
[1734956546458,0.0040856,96287.0,96275.0,0.00103855]
[1734956546679,8.56e-05,96287.0,96276.0,0.00103855]
[1734956546884,8.56e-05,96287.0,96277.0,0.207731]
[1734956547103,0.0020856,96287.0,96279.0,0.207729]
[1734956547315,0.0020856,96287.0,96280.0,0.0010385]
[1734956547535,0.0020856,96287.0,96281.0,0.207725]
[1734956547741,0.0020856,96287.0,96282.0,0.00103848]
[1734956547965,0.0020856,96287.0,96283.0,0.00103848]
[1734956548236,0.0020856,96287.0,96284.0,0.01401204]
[1734956548456,0.0020856,96287.0,96284.0,0.01505052]
[1734956548938,0.0020856,96287.0,96284.0,0.01401204]
[1734956549177,8.56e-05,96287.0,96284.0,0.01401204]
[1734956549409,8.56e-05,96287.0,96284.0,0.002]
[1734956549641,8.56e-05,96287.0,96285.0,0.01401083]
[1734956549872,8.56e-05,96287.0,96284.0,0.002]
[1734956550132,8.56e-05,96287.0,96284.0,0.003]
[1734956550643,0.207714,96286.0,96265.0,0.207758]
[1734956550886,0.207714,96286.0,96269.0,0.00120036]
[1734956551351,0.207714,96286.0,96270.0,0.01402904]
[1734956552056,0.207725,96282.0,96270.0,0.01402904]
[1734956552290,0.207727,96280.0,96270.0,0.01402904]
[1734956552538,0.207735,96277.0,96269.0,0.00016171]
[1734956552789,0.207729,96279.0,96270.0,0.005]
[1734956553047,0.207729,96279.0,96269.0,0.00016171]
[1734956553329,0.415459,96279.0,96270.0,0.007]
[1734956553504,0.207729,96279.0,96269.0,0.00016171]
[1734956554007,0.207729,96279.0,96270.0,0.01799005]
[1734956554236,0.207729,96279.0,96270.0,0.004]
[1734956554488,0.207729,96279.0,96271.0,0.01399667]
[1734956554971,0.207729,96279.0,96270.0,0.002]
[1734956555177,0.207729,96279.0,96271.0,0.01399652]
[1734956555413,0.207729,96279.0,96270.0,0.005]